Cogmind - Beta 14 @@@ ROGUE MODE // 2025.03.15 @ 11:35:26 Player: Lava Result: Destroyed by S-27 Virus with Autogun Performance ------------- Evolutions (3) 1500 Regions Visited (5) 1000 Robots Destroyed (71) 355 Value Destroyed (2196) 2196 Prototype IDs (5) 100 Alien Tech Used (0) 0 Bonus (14) 14 TOTAL SCORE: 5165 Bonus ------- High Alert Combat Kills 41 Friendly Fire -27 Cogmind --------- Core Integrity 0/700 Matter 295/300 Energy 66/100 System Corruption 2% Temperature Cool (0) Movement Core (450) Ox8 Location -7/Lower Caves Parts ------- > --- POWER (1) -------- (None) > --- PROPULSION (2) --- (None) > --- UTILITY (8) ------ Large Storage Unit Visual Processing Unit Improved Sensor Array (fused) Improved Signal Interpreter Improved Terrain Scan Processor Advanced ECM Suite > --- WEAPON (2) ------- Maul > --- INVENTORY (15) --- Improved Sensor Array Signal Interpreter Improved Terrain Scanner Melee Analysis Suite Grenade Launcher Flamer Peak State ------------ > --- POWER ------------ Micro Fission Core > --- PROPULSION ------- Armored Treads Armored Treads > --- UTILITY ---------- Large Storage Unit Visual Processing Unit Improved Sensor Array Improved Signal Interpreter Improved Terrain Scanner Improved Terrain Scan Processor Improved Medium Armor Plating Hacking Suite > --- WEAPON ----------- Enhanced Autogun Enhanced Autogun > --- INVENTORY -------- Light Nuclear Core Armored Treads Advanced Treads Medium Treads Improved Sensor Array Signal Interpreter Improved Terrain Scanner Transport Network Coupler Melee Analysis Suite Advanced ECM Suite Improved Medium Armor Plating Heavy Particle Cannon Enhanced Autogun Grenade Launcher Katana [Rating: 46] Favorites ----------- Power Light Ion Engine Engine Light Ion Engine Power Core Light Nuclear Core Propulsion Light Treads Treads Light Treads Leg Aluminum Leg Utility Hacking Suite Device Improved Sensor Array Storage Large Storage Unit Processor Visual Processing Unit Hackware Hacking Suite Protection Improved Medium Armor Plating Weapon Light Assault Rifle Energy Gun Medium Laser Energy Cannon Heavy Particle Cannon Ballistic Gun Light Assault Rifle Launcher Subdweller Shrapnel Launcher Impact Weapon Maul Slashing Weapon Katana Build | -11 -10 -10 -8 -7 -7 ------- Run | Yrd Mat Sub Mat Fac Low Slots Evolved 6 | . . . 4 2 . Power . | . . . . . . Propulsion . | . . . . . . Utility 6 | . . . 4 2 . Weapon . | . . . . . . Parts Attached 72 | 7 9 8 25 7 16 Power 9 | 1 3 . 2 1 2 Engine 6 | 1 3 . 1 . 1 Core 3 | . . . 1 1 1 Reactor . | . . . . . . Propulsion 14 | 2 1 2 3 2 4 Treads 12 | 2 1 . 3 2 4 Leg 2 | . . 2 . . . Wheel . | . . . . . . Hover . | . . . . . . Flight . | . . . . . . Utility 16 | 1 2 . 9 2 2 Device 4 | . . . 2 1 1 Storage 2 | 1 1 . . . . Processor 5 | . . . 4 1 . Hackware 1 | . 1 . . . . Protection 4 | . . . 3 . 1 Artifact . | . . . . . . Weapon 33 | 3 3 6 11 2 8 Energy Gun 2 | 2 . . . . . Energy Cannon 1 | . . . . . 1 Ballistic Gun 18 | 1 3 2 8 1 3 Ballistic Cannon . | . . . . . . Launcher 6 | . . 4 1 . 1 Special Weapon . | . . . . . . Impact Weapon 1 | . . . . . 1 Slashing Weapon 5 | . . . 2 1 2 Piercing Weapon . | . . . . . . Special Melee Weapon . | . . . . . . Unidentified Prototypes 1 | . . . 1 . . Parts Lost 23 | . 3 . 3 . 17 Power 5 | . 2 . 1 . 2 Propulsion 6 | . 1 . . . 5 Utility 6 | . . . 2 . 4 Weapon 6 | . . . . . 6 Highest Loss Streak 7 | . 1 . 2 . 7 To Critical Strikes . | . . . . . . Average Slot Usage (%) 96 | . 94 99 93 100 96 Engine 7 | . 13 14 3 . 3 Core 2 | . . . 5 7 2 Treads 16 | . 24 . 14 15 14 Leg 4 | . . 27 3 . . Device 5 | . . . 3 15 15 Storage 10 | . 14 14 9 7 7 Processor 11 | . . . 20 23 23 Hackware 10 | . 12 14 9 7 6 Protection 3 | . . . 7 7 6 Ballistic Gun 20 | . 27 20 16 14 13 Launcher 1 | . . 7 . . . Peak Build Rating 46 | 6 11 13 38 46 46 Average Rating 24 | 3 9 12 31 44 41 On Entrance 18 | . 6 10 13 37 46 Naked Turns . | . . . . . . Heaviest Build 53 | 12 25 35 53 40 45 Greatest Support 56 | 40 40 20 56 50 42 Greatest Overweight (x) 2 | 2 1 1 2 . 1 Average Overweight (x) . | . . 1 . . . Largest Inventory Capacity 15 | 8 15 15 15 15 15 Average Capacity 14 | 7 13 15 15 15 15 Most Carried 15 | 8 15 15 15 15 15 Average Carried 13 | 5 12 14 14 14 12 Final Capacity 15 | 8 15 15 15 15 15 Final Carried 15 | 6 15 15 15 15 6 Class Distribution -------------------- 46% | Mutant 33% | Skirmisher 17% | Scavenger-Mutant Dominant Class ---------------- Mutant | -10/Materials Mutant | -10/Subcaves Scavenger-Mutant | -8/Materials Skirmisher | -7/Factory Skirmisher | -7/Lower Caves Resources | -11 -10 -10 -8 -7 -7 ----------- Run | Yrd Mat Sub Mat Fac Low Matter Collected 2152 | 267 239 204 828 216 398 Remotely . | . . . . . . Salvage Created 2617 | . 662 127 1052 315 461 Parts 169 | . 55 7 73 16 18 Haulers Intercepted 1 | . . . 1 . . Recyclers Shooed 4 | . 2 . 1 1 . Parts Field Recycled . | . . . . . . Retrieved Matter . | . . . . . . Parts Self-Destructed 27 | . . 9 . . 18 Prevented . | . . . . . . Kills | -11 -10 -10 -8 -7 -7 ------- Run | Yrd Mat Sub Mat Fac Low Combat Hostiles Destroyed 60 | . 14 2 29 6 9 Melee 3 | . . . . . 3 Guns 53 | . 14 1 28 6 4 Cannons 2 | . . . . . 2 AOE 2 | . . 1 1 . . Classes Destroyed 14 | . 5 1 5 2 1 Worker 2 | . . . 2 . . Builder 1 | . . . 1 . . Hauler 1 | . . . 1 . . Recycler 2 | . 2 . . . . Operator 2 | . 2 . . . . Watcher 3 | . 3 . . . . Swarmer 19 | . 6 . 12 . 1 Grunt 30 | . 8 . 14 3 5 Brawler 1 | . . . . 1 . Duelist 3 | . . . 2 . 1 Sentry 2 | . . . 1 . 1 Hunter 1 | . . . . . 1 Programmer 2 | . . . . 2 . Subdweller 2 | . . 2 . . . Best Kill Streak 8 | . 8 1 5 2 3 Combat Bots Only 7 | . 7 1 5 2 3 Max Kills in Single Turn 2 | . 2 1 2 1 1 Gunslinging 1 | . 1 . . . . Exploded 1 | . . 1 1 . . Melee 1 | . . . . . 1 Uniques/NPCs Destroyed . | . . . . . . Combat | -11 -10 -10 -8 -7 -7 -------- Run | Yrd Mat Sub Mat Fac Low Hostile Shots Fired 573 | . 110 4 114 30 315 Missed 154 | . 33 2 32 9 78 Damage Taken 5491 | . 818 44 1006 364 3259 Core 1009 | . 215 . 82 61 651 Absorbed by Shields . | . . . . . . Regen/Repaired (Parts) 74 | . 74 . . . . Core Remaining (%) 66 | 100 . 14 85 . . Volleys Fired 234 | . 69 27 71 21 46 Largest 2 | . 2 1 2 2 2 Hottest 103 | . 70 40 53 50 103 Shots Fired 423 | . 138 27 138 42 78 Gun 401 | . 138 17 136 42 68 Cannon 8 | . . . . . 8 Launcher 14 | . . 10 2 . 2 Special . | . . . . . . Kinetic 404 | . 134 22 138 42 68 Thermal 12 | . 4 . . . 8 Explosive 7 | . . 5 . . 2 Electromagnetic . | . . . . . . Robot Hit Streak 16 | . 12 13 11 8 16 Robot Miss Streak 5 | . 4 1 5 3 3 Penetration Max . | . . . . . . Secondary Targets 10 | . 3 . 6 . 1 Max Gunslinging Chain 1 | . 1 . 1 . 1 Shots Hit Robots 278 | . 80 15 85 30 68 Core Hits 142 | . 42 12 51 13 24 Critical Kills 1 | . . . 1 . . Critical Parts Destroyed 2 | . . . 1 . 1 Critical Strikes 4 | . . . 2 . 2 Destroy 2 | . . . 2 . . Smash 2 | . . . . . 2 Melee Attacks 27 | . . . 8 2 17 Impact 6 | . . . . . 6 Slashing 21 | . . . 8 2 11 Piercing . | . . . . . . Sneak Attacks 1 | . . . 1 . . Combat Hostiles . | . . . . . . Follow-up Attacks . | . . . . . . Damage Inflicted 5346 | . 810 500 1889 599 1548 Guns 3942 | . 771 118 1566 576 911 Cannons 125 | . . . . . 125 Explosions 746 | . . 382 250 . 114 Melee 464 | . . . 66 . 398 Ramming 69 | . 39 . 7 23 . Kinetic 4536 | . 733 500 1816 576 911 Thermal 163 | . 38 . . . 125 Explosive 114 | . . . . . 114 Electromagnetic . | . . . . . . Impact 227 | . . . . . 227 Slashing 237 | . . . 66 . 171 Piercing . | . . . . . . Highest Corruption 2 | . . . 1 2 2 Average Corruption 1 | . . . 1 1 2 Corruption Purged . | . . . . . . Corruption Blocked . | . . . . . . Effects 23 | . . . 4 5 14 Message Errors 11 | . . . 3 3 5 Matter Fused 1 | . . . . . 1 Energy Discharges 3 | . . . . 2 1 Parts Fused 1 | . . . . . 1 Data Loss (minor) 3 | . . . 1 . 2 Misfires 1 | . . . . . 1 Weapon Failures 3 | . . . . . 3 Overload Shots . | . . . . . . Overflow Damage 91 | . . 3 26 . 62 Projectiles . | . . . . . . Explosions 3 | . . 3 . . . Melee 88 | . . . 26 . 62 Knockbacks 3 | . 2 . . . 1 Impact 3 | . 2 . . . 1 Kinetic . | . . . . . . Secondary . | . . . . . . Self-Inflicted Damage 67 | . . . . . 67 Shots 2 | . . . . . 2 Rammed 14 | . 9 . 3 2 . Targets Rammed 15 | . 10 . 3 2 . Kicked . | . . . . . . Crushed 1 | . 1 . . . . Highest Temperature 213 | . 24 . 39 44 213 Average Temperature 29 | . 11 . 11 12 63 Received Heat Transfer 1848 | . 339 . 351 144 1014 Siege Activations . | . . . . . . Robots Corrupted . | . . . . . . Combat Hostiles . | . . . . . . Parts Fried . | . . . . . . Impact Corruptions 2 | . . . . . 2 Robots Melted . | . . . . . . Combat Hostiles . | . . . . . . Parts Melted . | . . . . . . Heat Transferred 296 | . 111 . . . 185 Parts Sabotaged . | . . . . . . Parts Stolen . | . . . . . . Parts Stripped . | . . . . . . Power Chain Reactions . | . . . . . . Alert | -11 -10 -10 -8 -7 -7 ------- Run | Yrd Mat Sub Mat Fac Low Peak Influence 542 | . 222 . 542 194 . Initial 180 | . . . . 180 . Average 143 | . 52 . 319 131 . Maximum Alert Level 2 | . 1 . 2 . . Low Security (%) 71 | 100 88 . 20 100 . Level 1 20 | . 11 . 52 . . Level 2 7 | . . . 26 . . Level 3 . | . . . . . . Level 4 . | . . . . . . Level 5 . | . . . . . . High Security . | . . . . . . Max Security . | . . . . . . Squads Dispatched 11 | . 3 . 7 1 . Investigation 5 | . 1 . 3 1 . Extermination . | . . . . . . Reinforcement 4 | . 2 . 2 . . Assault . | . . . . . . Garrison 2 | . . . 2 . . Intercept . | . . . . . . Searches Triggered . | . . . . . . Construction Impeded 2 | . . . 2 . . Haulers Reinforced . | . . . . . . Active Scanning Responses . | . . . . . . Cargo Convoy Interrupts . | . . . . . . Stealth | -11 -10 -10 -8 -7 -7 --------- Run | Yrd Mat Sub Mat Fac Low Distress Signals 2 | . . . 1 1 . Communications Jammed . | . . . . . . Distress Signals . | . . . . . . Times Spotted 81 | . 25 3 29 7 17 Peak Tracking Total 7 | . 5 1 4 3 7 Tactical Retreats 1 | . 1 . . . . Traps | -11 -10 -10 -8 -7 -7 ------- Run | Yrd Mat Sub Mat Fac Low Traps Triggered 1 | . 1 . . . . Indirectly . | . . . . . . Trap Hack Attempts . | . . . . . . Triggered . | . . . . . . Disarmed . | . . . . . . Reprogrammed 6 | . 6 . . . . Reused . | . . . . . . Traps Extracted . | . . . . . . Installed . | . . . . . . Triggered 3 | . . 3 . . . Machines | -11 -10 -10 -8 -7 -7 ---------- Run | Yrd Mat Sub Mat Fac Low Machines Disabled 1 | . . . . . 1 Max in Single Turn 1 | . . . . . 1 Garrison Access 2 | . . . 1 1 . Machines Repaired . | . . . . . . Machines Dismantled . | . . . . . . Machines Sabotaged . | . . . . . . Overloaded Fab Kills . | . . . . . . Hacking | -11 -10 -10 -8 -7 -7 --------- Run | Yrd Mat Sub Mat Fac Low Machines Accessed 15 | . 7 . 5 3 . Terminals 11 | . 6 . 3 2 . Fabricators . | . . . . . . Repair Stations 1 | . 1 . . . . Recycling Units . | . . . . . . Scanalyzers 1 | . . . 1 . . Garrison Access 2 | . . . 1 1 . Total Hacks 44 | . 26 . 13 5 . Successful 23 | . 15 . 5 3 . Failed 21 | . 11 . 8 2 . Catastrophic 3 | . 1 . 2 . . Database Lockouts . | . . . . . . Manual 4 | . 2 . 2 . . Terminals 34 | . 24 . 7 3 . Fabricators . | . . . . . . Repair Stations 2 | . 2 . . . . Recycling Units . | . . . . . . Scanalyzers 3 | . . . 3 . . Garrison Access 5 | . . . 3 2 . Terminal Hacks 17 | . 13 . 2 2 . Prototype ID Bank 2 | . 2 . . . . Open DSF 1 | . . . . 1 . Emergency Access Points 1 | . 1 . . . . Terminal Index 1 | . 1 . . . . Repair Station Index 1 | . 1 . . . . Alert Level 2 | . . . 2 . . Locate Traps 2 | . 2 . . . . Reprogram Traps 1 | . 1 . . . . Dispatch Records 2 | . 2 . . . . Patrol Status 1 | . . . . 1 . Recall Investigation 1 | . 1 . . . . Hauler Manifests 1 | . 1 . . . . Registered Components 1 | . 1 . . . . Fabricator Hacks . | . . . . . . Repair Station Hacks 2 | . 2 . . . . Scan Component 1 | . 1 . . . . Repair 1 | . 1 . . . . Recycling Unit Hacks . | . . . . . . Scanalyzer 2 | . . . 2 . . Insert Component 1 | . . . 1 . . Analyze 1 | . . . 1 . . Garrison Access Hacks 2 | . . . 1 1 . Seal Access 2 | . . . 1 1 . Unauthorized Hacks . | . . . . . . Terminals . | . . . . . . Fabricators . | . . . . . . Repair Stations . | . . . . . . Recycling Units . | . . . . . . Scanalyzers . | . . . . . . Garrison Access . | . . . . . . Data Cores Recovered 1 | . 1 . . . . Used . | . . . . . . Hacking Detections 14 | . 7 . 5 2 . Full Trace Events 2 | . . . 2 . . Feedback Events 1 | . . . 1 . . Corruption 1 | . . . 1 . . Feedback Blocked . | . . . . . . Robot Schematics Acquired . | . . . . . . Robots Built . | . . . . . . Authchips . | . . . . . . Time . | . . . . . . Total Robot Build Rating . | . . . . . . Part Schematics Acquired 1 | . . . 1 . . Parts Built . | . . . . . . Authchips . | . . . . . . Time . | . . . . . . Total Part Build Rating . | . . . . . . Parts Repaired 1 | . 1 . . . . Time 26 | . 26 . . . . Parts Recycled . | . . . . . . Recycled Matter . | . . . . . . Retrieved Matter . | . . . . . . Retrieved Components . | . . . . . . Parts Scanalyzed 1 | . . . 1 . . Part Schematics Acquired 1 | . . . 1 . . Parts Damaged . | . . . . . . Bothacking | -11 -10 -10 -8 -7 -7 ------------ Run | Yrd Mat Sub Mat Fac Low Used RIF Installer . | . . . . . . Robots Hacked . | . . . . . . Non-combat . | . . . . . . Combat . | . . . . . . Robot Hacks Applied . | . . . . . . Relay Couplers Released 4 | . . . . 4 . Programmers 4 | . . . . 4 . Fabnet Peak Effective % . | . . . . . . Robots Rewired . | . . . . . . Allies Hacked . | . . . . . . Hacks Repelled . | . . . . . . Allies | -11 -10 -10 -8 -7 -7 -------- Run | Yrd Mat Sub Mat Fac Low Total Allies . | . . . . . . Largest Group . | . . . . . . Highest-Rated Group . | . . . . . . Highest-Rated Ally . | . . . . . . Total Orders . | . . . . . . Ally Attacks . | . . . . . . Total Damage . | . . . . . . Kills . | . . . . . . Allies Corrupted . | . . . . . . Allies Melted . | . . . . . . Intel | -11 -10 -10 -8 -7 -7 ------- Run | Yrd Mat Sub Mat Fac Low Robot Analysis Total . | . . . . . . Derelict Logs Recovered 2 | . . 1 . . 1 Drone Launches . | . . . . . . Drone Recoveries . | . . . . . . Exploration | -11 -10 -10 -8 -7 -7 ------------- Run | Yrd Mat Sub Mat Fac Low Turns Passed 5931 | 77 2017 781 1150 785 1121 Spaces Moved 2838 | 49 999 374 532 444 440 Core 24 | 24 . . . . . Treads 2386 | 25 999 9 469 444 440 Legs 428 | . . 365 63 . . Wheels . | . . . . . . Hover . | . . . . . . Flight . | . . . . . . Fastest Speed 50 | 50 160 190 152 152 157 Average Speed 178 | 122 175 191 168 159 209 Slowest Speed 260 | 160 240 240 260 170 250 Overloaded Moves . | . . . . . . Propulsion Burnouts . | . . . . . . Robots Hopped . | . . . . . . Cave-ins Triggered . | . . . . . . Exploration Rate (%) 36 | 3 92 17 55 14 40 Regions Visited 5 Branch Regions 2 Pre-discovered Areas 1 | . . 1 . . . Known Exits Taken 2 | . . . 1 1 . Unknown Exits Taken 3 | 1 1 1 . . . Scrap Searched 2 | . . . . . 2 Spaces Dug 9 | . . . 7 2 . Terrain Destroyed 157 | . . 91 44 2 20 Melee 9 | . . . 7 2 . Projectile 3 | . . . 2 . 1 AOE 145 | . . 91 35 . 19 Terrain Rammed . | . . . . . . Walls Destroyed . | . . . . . . Machines Disabled . | . . . . . . Actions | -11 -10 -10 -8 -7 -7 --------- Run | Yrd Mat Sub Mat Fac Low Total 3342 | 64 1147 416 674 494 547 Wait 71 | . 34 . 9 6 22 Move 2833 | 48 998 373 531 443 440 Hop . | . . . . . . Pick Up 55 | 9 18 3 14 6 5 Fast Attach 11 | 3 1 1 5 1 . Attach 27 | 3 3 1 5 2 13 Detach . | . . . . . . Swap 34 | 1 5 6 15 4 3 Drop 35 | . 9 5 13 7 1 Fire 234 | . 69 27 71 21 46 Melee 27 | . . . 8 2 17 Ram . | . . . . . . Kick . | . . . . . . Crush 15 | . 10 . 3 2 . Escape Stasis . | . . . . . . Rewire . | . . . . . . Trap . | . . . . . . Miscellaneous . | . . . . . . Route ------- -11/Scrapyard -10/Materials (discovered 4 exits: [*Mat x3] / [*Sub]) -10/Subcaves -8/Materials -7/Factory (discovered 2 exits: [*Fac] / *Low) -7/Lower Caves History --------- Turn | Location | Event 2 | -11/Scrapyard | Met Revision 17 5 | -11/Scrapyard | Discovered new exit (range 15) 78 | -11/Scrapyard | Entered Materials 265 | -10/Materials | Destroyed 7 combat bots 312 | -10/Materials | Build established: Mutant 417 | -10/Materials | Repaired Lgt. Treads 483 | -10/Materials | Discovered new exit (range 12) 627 | -10/Materials | Discovered new exit (range 16) 657 | -10/Materials | Core integrity fell below 50% 1026 | -10/Materials | Discovered new exit (range 16) 1333 | -10/Materials | Discovered new exit (range 13) 1611 | -10/Materials | Core integrity fell below 20% 1966 | -10/Materials | Build established: Scavenger-Mutant 2095 | -10/Materials | Entered Subcaves 2259 | -10/Subcaves | Shifting Twisted Machinery released Spk. Treads 2266 | -10/Subcaves | Shifting Twisted Machinery released Sub. Shrapnel Launcher 2407 | -10/Subcaves | Build established: Mutant 2615 | -10/Subcaves | Ambushed by Subdweller buried in earth 2798 | -10/Subcaves | Shifting Twisted Machinery released Scrap Shield 2802 | -10/Subcaves | Shifting Twisted Machinery released Sub. Beam Cannon 2819 | -10/Subcaves | Discovered new exit (range 4) 2876 | -10/Subcaves | Entered Materials 2876 | -8/Materials | Evolved 4 slots: Utility x4 3258 | -8/Materials | Garrison activated, responded to threat 3373 | -8/Materials | Build established: Scavenger-Mutant 3784 | -8/Materials | Met 7R-MNS 4007 | -8/Materials | Discovered new exit (range 12) 4024 | -8/Materials | Identified exit to Factory 4026 | -8/Materials | Entered Factory 4026 | -7/Factory | Evolved 2 slots: Utility x2 4027 | -7/Factory | Caught up to 7R-MNS 4105 | -7/Factory | Build established: Skirmisher 4270 | -7/Factory | Discovered new exit (range 11) 4608 | -7/Factory | Discovered new exit (range 16) 4787 | -7/Factory | Identified exit to Lower Caves 4811 | -7/Factory | Entered Lower Caves 5139 | -7/Lower Caves | Attracted the attention of an 0b10 checkpoint 5216 | -7/Lower Caves | Lost 3 parts (1u2w) 5764 | -7/Lower Caves | Learned Factory terminal intel 5829 | -7/Lower Caves | Core integrity fell below 50% 5872 | -7/Lower Caves | Lost 7 parts (1p2n2u2w) 5895 | -7/Lower Caves | Attracted the attention of an 0b10 base 5917 | -7/Lower Caves | Core integrity fell below 20% 5932 | -7/Lower Caves | Destroyed by S-27 Virus with Autogun Last Messages --------------- Imp. Terrain Scanner destroyed. Katana destroyed. Adv. Treads destroyed. Arm. Treads destroyed. S-27 Virus knocked back. Penetrated by Slug. Hvy. Particle Cannon destroyed. Y-64 Sentinel suffers critical hit (Smash). Penetrated by Slug. Y-64 Sentinel suffers critical hit (Smash). Destroyed Imp. Treads. Y-64 Sentinel system corrupted by crushing effect. Y-64 Sentinel misfires. Slug penetrates Wall. Med. Treads destroyed. Penetrated by Slug. S-27 Virus destroyed. Destroyed VTOL Module. S-27 Virus system corrupted by crushing effect. Map ----- +----------------------------------------------------+ | ?????????????????????????????????????????????????? | | ???????????#???????"??? ? #??????????????????????? | | ??????????#?? ? ??? ? ??? ##?????????????????????? | | ???????? ???? ? ? ??????#??#??????????????????? | | ????##? ? ??#??????? ???? ???????????????????????? | | ###?###????##?#???##?? #?##??????????????????????? | | ###? ?? #?#?#???#?? ?###??? ?? ??# #??????????? | | ? ?##??#?# ??###?#???? ?? ??????????? | | # ? ??# ??#?##??? ??????????? | | ? ???? ? ? ??##???? ? ???? ??? | | ?? ## ? ???##? ##????????? | | ??# #? ? ? ? ?###### ##?######??? | | #?# #?? ? ? ### ## ####?###?#?# | | ## ##?? ? ### ### ########### | | # #### ???# ### #### # ########### | | ############ #### ###?# ## #######?### | | ### ######### ## ##########? | | #####?### ## ###?####### | | #### ## ######### ########### | | ##### ############### ### | | ###### ##?############## ? ? | | ###### ################## ####### | | ###### ################## ####### | | ###### ### s %s ###### | | ###### s %% ###### | | ###### ;s@########+/###### ##### | | ####### #Y #"""""" %% T"""# #### | | ####### # # ""# ## | | ####### # # "# # | | #??#?## ### # ####### "# | | ###?#### #### %# $ "# ## | | ##?##### ##?## + # ### | | ####### ##### + " # #### | | ##?## ### # "" + ### | | ##### ### ##### " + ###### | | ### #### # # "" # ####?# | | #### #?# # " # ###### | | ##### #### ### # """# ###### | | ###?###### #?# # " # ###### | | ??##??#?## ### # # " # ###### | | ???##???## ####### #### ######++########/ ###### | | ##??####?############??# /% ###### | | ?#?##?###?####?######### ! ###### | | #?##??#?#?##?##?#############################?###? | | ?#??#?#?####??#?#?#?????########?######?##??###?#? | | #?####??#?###?########??###?##?#####????########## | | ??##??#?##?############?#?###?#?#?##????#?#??#?#?# | | ###?###?#??????###?####???#?#####??#????#??######? | | ?#???##?#??#?##?#??##?#?##?#?##???##?##?#?##???#?? | | ?#??????#??###??##?###?##?####?#?###????####?#???? | +----------------------------------------------------+ Best States ------------- Heat Dissipation 34 Energy Generation 15 Energy Capacity 275 Matter Stores 300 Matter Capacity 300 Sight Range 18 Robot Scan Range 15 Terrain Scan Range 16 Terrain Scan Density 110 Armor Coverage 800 Evasion (%) 50 Recoil Reduction 2 Offensive Hacking 10 Item Schematics ----------------- Sub. Shrapnel Launcher | -8/Materials | Scanalyzed Robot Schematics ------------------ None Fabricated ------------ Nothing Alien Tech Used ----------------- None Achievements -------------- I Spy Challenges ------------ None Game ------ Seed CobblerCannonLoader Manual? 0 Play Time 00:41:06 Cumulative 14.3 hours Start 2025.03.15 @ 10:54:01 End 2025.03.15 @ 11:35:26 Sessions 1 Manual Loads 0 Difficulty Rogue Special Mode None Game No. 20 Rogue 20 Adventurer 0 Explorer 0 Win Type - Total 0 Types 0/0/0/0/0/0/0/0/0 Lore% 11 Gallery% 19 Achievement% 20 Wizard Run 0 Options --------- Layout 1 ASCII 0 Keyboard 0 Movement Mouse Keybinds 0 Fullscreen 1 Font 32/SmallcapsGlow Map View 50x40 Zoom Use 0% Tactical HUD 0 Map Filters NONE Filters NONE Steam 1 RUN: 06339d6e-f5a9-4315-b53c-3bcc7d545ab1